lending/lending_fUSD_20241212
["ID","MTS","AMOUNT","RATE_DAILY","PERIOD"]
[345087042,1733993450035,-156.50950952,0.00016658,2]
[345087043,1733993450044,-201.82340824,0.00016658,2]
[345087044,1733993450053,-152.51023625,0.00016658,2]
[345087045,1733993450062,-230.70459818,0.00016658,2]
[345087046,1733993450071,-152.23964013,0.00016658,2]
[345087047,1733993450080,-700.0,0.0001667,2]
[345087048,1733993450089,-700.0,0.0001667,2]
[345087049,1733993450098,-700.0,0.0001667,2]
[345087050,1733993450107,-400.0,0.0001667,2]
[345087051,1733993450117,-700.0,0.0001667,2]
[345087052,1733993450127,-400.0,0.0001667,2]
[345087053,1733993450136,-400.0,0.0001667,2]
[345087054,1733993450146,-400.40980956,0.0001667,2]
[345087055,1733993450155,-583.16738,0.0001667,2]
[345087056,1733993450164,-219.28,0.00016712,2]
[345087057,1733993450173,-5226.36,0.00016713,7]
[345087058,1733993450182,-5226.36,0.00016713,7]
[345087059,1733993450191,-300.121217,0.00016798,3]
[345087060,1733993450200,-950.0,0.000168,4]
[345087061,1733993450209,-1056.0,0.0001687,2]
[345087062,1733993450218,-877.39045024,0.00016876,2]
[345087063,1733993450228,-1727.0,0.00016876,2]
[345087064,1733993450237,-984.90484721,0.00016876,2]
[345087065,1733993450252,-616.12,0.00016895,2]
[345087066,1733993450263,-152.0,0.00016919,4]
[345087067,1733993450273,-800.0,0.00016959,2]
[345087068,1733993450283,-155.0,0.00016964,30]
[345087069,1733993450291,-1000.0,0.0001698,2]
[345087070,1733993450301,-5226.36,0.00016986,7]
[345087071,1733993450310,-5226.36,0.00016986,7]
[345087072,1733993450319,-500.0,0.00016999,2]
[345087073,1733993450329,-401.64,0.00016999,2]
[345087074,1733993450338,-1295.14,0.00016999,2]
[345087075,1733993450347,-231.52137828,0.00016999,2]
[345087076,1733993450356,-1690.59,0.00016999,2]
[345087077,1733993450366,-500.0,0.00016999,2]
[345087078,1733993450376,-500.0,0.00016999,2]
[345087079,1733993450386,-473.37325225,0.00016999,2]
[345087080,1733993450395,-500.0,0.00016999,2]
[345087081,1733993450404,-500.0,0.00016999,2]
[345087082,1733993450414,-500.0,0.00016999,2]
[345087083,1733993450423,-997.61,0.00016999,2]
[345087084,1733993450433,-976.68,0.00016999,2]
[345087085,1733993450442,-1765.63,0.00016999,2]
[345087086,1733993450451,-550.0,0.00017,2]
[345087087,1733993450460,-550.0,0.00017,2]
[345087088,1733993450469,-4542.94829609,0.00017,2]
[345087089,1733993451573,807.76,0.00010137,2]
[345087091,1733993460043,825.31,0.000122,2]
[345087092,1733993471678,1544.28338323,0.00010982,2]
[345087093,1733993471988,1544.28338323,0.00010976,2]
[345087094,1733993472300,1544.28338323,0.00010971,2]
[345087095,1733993472576,1544.28338323,0.00010999,2]
[345087096,1733993472904,1544.28338323,0.00010995,2]
[345087097,1733993473148,1544.28338323,0.00010998,2]
[345087098,1733993490010,200.0,0.00010973,2]
[345087099,1733993495943,500.0,0.00012068,2]
[345087100,1733993495986,500.0,0.00012068,2]
[345087101,1733993645550,742.78,0.000122,2]
[345087102,1733993651934,450.0,0.00013,2]
[345087103,1733993704189,156.0,0.00013,30]
[345087104,1733993749648,1782.69,0.00011733,2]
[345087106,1733993832095,668.5,0.000122,2]
[345087107,1733993836871,450.0,0.00013,2]
[345087108,1733994001314,300.0,0.00012999,2]
[345087109,1733994003647,156.0,0.00013,30]
[345087115,1733994017423,601.65,0.000122,2]
[345087116,1733994025067,151.0,0.00012049,2]
[345087118,1733994112982,53038.28570477,0.00012356,2]
[345087119,1733994162452,5000.0,0.00011,2]
[345087120,1733994187386,5000.0,0.00012,2]
[345087121,1733994201838,2079.88533332,0.000121,5]
[345087122,1733994203096,541.49,0.000122,2]
[345087123,1733994215425,5000.0,0.000122,5]
[345087124,1733994231388,4020.0,0.000122,2]
[345087125,1733994301377,300.0,0.00012999,2]
[345087126,1733994303920,162.0,0.000122,30]
[345087127,1733994304257,162.0,0.00012716,30]
[345087128,1733994312364,324.47456329,0.00013,7]
[345087129,1733994389354,487.34,0.000122,2]
[345087130,1733994422140,300.0,0.00012999,2]
[345087135,1733994575142,438.61,0.000122,2]
[345087137,1733994601375,300.0,0.00012999,2]
[345087138,1733994603102,154.0,0.000122,30]
[345087139,1733994603452,154.0,0.00012744,30]
[345087146,1733994632155,-800.0,0.00013,2]
[345087148,1733994632166,-800.0,0.00013,2]
[345087149,1733994632174,-800.0,0.00013,2]
[345087151,1733994632184,-800.0,0.00013,2]
[345087153,1733994632193,-800.0,0.00013,2]
[345087155,1733994632204,-800.0,0.00013,2]
[345087156,1733994632213,-600.0,0.00013164,2]
[345087157,1733994632224,-154.0,0.00013289,30]
[345087158,1733994632234,-185.0,0.00013423,2]
[345087159,1733994632244,-200.0,0.00013699,2]
[345087160,1733994632254,-440.08,0.00013699,2]
[345087161,1733994632267,-618.0,0.000138,2]
[345087162,1733994632279,-154.0,0.00013833,30]
[345087163,1733994632289,-1782.69,0.00013997,2]
[345087164,1733994632298,-151.0,0.00014052,2]
[345087165,1733994632308,-500.0,0.00014055,2]
[345087166,1733994632317,-500.0,0.00014055,2]
[345087167,1733994632327,-420.0,0.00014256,2]
[345087168,1733994632337,-618.0,0.000143,2]
[345087169,1733994632348,-154.0,0.00014378,30]
[345087170,1733994632357,-250.0,0.00014521,2]
[345087171,1733994632367,-306.18,0.00014533,2]
[345087172,1733994632377,-600.0,0.00014534,2]
[345087173,1733994632388,-194.81,0.00014541,2]
[345087174,1733994632398,-6864.73795741,0.00014595,2]
[345087175,1733994632410,-868.5,0.00014595,2]
[345087176,1733994632421,-6354.62979743,0.00014595,2]
[345087177,1733994635397,-21603.56224516,0.00014595,2]
[345087178,1733994635407,-250.0,0.000146,2]
[345087179,1733994635416,-320.0,0.00014682,2]
[345087180,1733994635427,-618.0,0.000148,2]
[345087181,1733994635438,-500.0,0.00014808,2]
[345087182,1733994635447,-500.0,0.00014808,2]
[345087184,1733994635457,-154.0,0.00014922,30]
[345087185,1733994635467,-150.0,0.00014975,2]
[345087187,1733994635477,-200.0,0.00014982,2]
[345087190,1733994635487,-500.0,0.00015,2]
[345087191,1733994635496,-500.0,0.00015,2]
[345087193,1733994635505,-32254.0,0.00015,4]
[345087195,1733994635514,-200.0,0.0001502,2]
[345087197,1733994635523,-500.0,0.0001502,2]
[345087199,1733994635532,-2751.0,0.00015131,2]
[345087201,1733994635541,-871.06,0.00015142,7]
[345087204,1733994635550,-871.06,0.00015142,7]
[345087225,1733994635743,-871.06,0.00015142,7]
[345087227,1733994635753,-871.06,0.00015142,7]
[345087229,1733994635762,-1332.09,0.00015155,2]
[345087231,1733994635771,-4000.0,0.00015165,2]
[345087233,1733994635781,-3311.71,0.00015174,2]
[345087236,1733994635790,-618.0,0.000153,2]
[345087238,1733994635799,-2015.0,0.00015318,2]
[345087240,1733994635809,-871.06,0.00015415,7]
[345087242,1733994635818,-871.06,0.00015415,7]
[345087244,1733994635827,-154.0,0.00015467,30]
[345087246,1733994635836,-3780.4527,0.000156,2]
[345087247,1733994635846,-1987.08,0.00015603,2]
[345087248,1733994635856,-587.0,0.00015634,2]
[345087249,1733994635865,-871.06,0.00015689,7]
[345087250,1733994635874,-871.06,0.00015689,7]
[345087251,1733994635884,-207.7866531,0.00015699,2]
[345087252,1733994635893,-500.0,0.00015699,2]
[345087253,1733994635903,-500.0,0.00015699,2]
[345087254,1733994635912,-500.0,0.00015699,2]
[345087255,1733994635922,-500.0,0.00015699,2]
[345087256,1733994635931,-500.0,0.00015699,2]
[345087257,1733994635941,-500.0,0.00015699,2]
[345087258,1733994635951,-500.0,0.00015699,2]
[345087259,1733994635960,-500.0,0.00015699,2]
[345087260,1733994635973,-609.80643876,0.00015699,2]
[345087261,1733994635983,-472.49329772,0.00015699,2]
[345087262,1733994635993,-500.0,0.00015699,2]
[345087263,1733994636002,-500.0,0.00015699,2]
[345087264,1733994636011,-618.0,0.000158,3]
[345087265,1733994636021,-600.0,0.00015904,2]
[345087266,1733994636030,-871.06,0.00015962,7]
[345087267,1733994636039,-739.90116526,0.00015962,7]
[345087269,1733994638206,-131.15883474,0.00015962,7]
[345087270,1733994638215,-262.53214004,0.00016,2]
[345087271,1733994638227,-1002.63526089,0.00016,2]
[345087272,1733994638317,-1120.58652609,0.00015643,2]
[345087273,1733994638327,-734.83259907,0.00016,2]
[345087274,1733994638335,-2000.0,0.0001601,2]
[345087275,1733994638343,-154.0,0.00016011,30]
[345087276,1733994638352,-3663.099066,0.0001602,2]
[345087277,1733994638360,-1536.979,0.00016032,2]
[345087278,1733994638368,-9999.99,0.00016116,2]
[345087279,1733994638376,-430.936,0.0001615,2]
[345087280,1733994638384,-2000.0,0.00016219,2]
[345087281,1733994638392,-500.0,0.00016219,2]
[345087282,1733994638400,-200.0,0.00016219,2]
[345087283,1733994638408,-871.06,0.00016235,7]
[345087284,1733994638416,-871.06,0.00016235,7]
[345087285,1733994638424,-1782.69,0.00016261,2]
[345087286,1733994638433,-250.0,0.00016282,2]
[345087288,1733994638442,-1000.0,0.00016282,2]
[345087290,1733994638451,-618.0,0.000163,3]
[345087292,1733994638460,-500.0,0.00016437,2]
[345087294,1733994638469,-500.0,0.00016437,2]
[345087296,1733994638480,-500.0,0.00016437,2]
[345087298,1733994638488,-500.0,0.00016437,2]
[345087300,1733994638497,-500.0,0.00016437,2]
[345087302,1733994638506,-8735.952,0.000165,2]
[345087304,1733994638515,-871.06,0.00016508,7]
[345087306,1733994638523,-871.06,0.00016508,7]
[345087308,1733994638531,-154.0,0.00016556,30]
[345087310,1733994638540,-500.0,0.00016599,2]
[345087312,1733994638548,-478.04890346,0.00016599,2]
[345087314,1733994638556,-500.0,0.00016599,2]
[345087315,1733994638564,-500.0,0.00016599,2]
[345087316,1733994638573,-500.0,0.00016599,2]
[345087317,1733994638582,-1479.26,0.00016599,2]
[345087318,1733994638591,-500.0,0.00016599,2]
[345087319,1733994638600,-500.0,0.00016599,2]
[345087320,1733994638609,-500.0,0.00016599,2]
[345087321,1733994638619,-4095.03,0.000166,31]
[345087322,1733994638628,-4095.03,0.000166,31]
[345087323,1733994638637,-609.32590568,0.000166,31]
[345087324,1733994638649,-3485.70409432,0.000166,31]
[345087325,1733994638658,-4095.03,0.000166,31]
[345087326,1733994638668,-4095.03,0.000166,31]
[345087327,1733994638677,-4095.03,0.000166,31]
[345087328,1733994638686,-4095.03,0.000166,31]
[345087329,1733994638695,-1296.49590111,0.000166,31]
[345087330,1733994638706,-307.93352914,0.000166,31]
[345087331,1733994638717,-2490.60056975,0.000166,31]
[345087332,1733994638729,-4095.03,0.000166,31]
[345087333,1733994638738,-4095.03,0.000166,31]
[345087334,1733994638755,-4095.03,0.000166,31]
[345087335,1733994638765,-3013.66707277,0.000166,31]
[345087336,1733994638777,-1081.36292723,0.000166,31]
[345087337,1733994638786,-898.63707277,0.000166,31]
[345087346,1733994640184,-1039.68586,0.000166,31]
[345087347,1733994640403,-2043.6,0.000166,31]
[345087348,1733994640461,-113.10706723,0.000166,31]
[345087349,1733994640473,-796.16292647,0.000166,31]
[345087369,1733994643447,-3298.86707353,0.000166,31]
[345087370,1733994643456,-4095.03,0.000166,31]
[345087371,1733994643466,-4095.03,0.000166,31]
[345087372,1733994643480,-1257.71,0.00016658,30]
[345087373,1733994643490,-5000.0,0.000167,2]
[345087374,1733994643500,-175.42,0.00016712,2]
[345087375,1733994643515,-871.06,0.00016781,7]
[345087376,1733994643524,-871.06,0.00016781,7]
[345087377,1733994643534,-618.0,0.000168,4]
[345087378,1733994643544,-5019.0,0.000168,2]
[345087379,1733994643553,-807.76,0.00016813,2]
[345087380,1733994643562,-190.26972,0.0001683,2]
[345087381,1733994643571,-200.0,0.00016855,2]
[345087383,1733994643580,-428.15146824,0.00016885,2]
[345087384,1733994643589,-440.08,0.00016895,2]
[345087385,1733994643598,-500.0,0.00016987,2]
[345087386,1733994643608,-500.0,0.00016987,2]
[345087387,1733994643617,-500.0,0.00016987,2]
[345087388,1733994643626,-500.0,0.00016987,2]
[345087389,1733994643635,-500.0,0.00016987,2]
[345087390,1733994643644,-1234.47,0.00016987,2]
[345087391,1733994643653,-5827.4986213,0.00016988,2]
[345087392,1733994643662,-186.2940995,0.00016988,2]
[345087393,1733994643671,-500.0,0.00016999,2]
[345087394,1733994643680,-500.0,0.00016999,2]
[345087395,1733994643689,-500.0,0.00016999,2]
[345087396,1733994643698,-380.04341088,0.00016999,2]
[345087397,1733994643707,-872.91,0.00016999,2]
[345087398,1733994643716,-500.0,0.00016999,2]
[345087400,1733994643728,-500.0,0.00016999,2]
[345087402,1733994643738,-500.0,0.00016999,2]
[345087404,1733994643747,-500.0,0.00016999,2]
[345087406,1733994643756,-500.0,0.00016999,2]
[345087407,1733994643766,-500.0,0.00016999,2]
[345087409,1733994643775,-500.0,0.00016999,2]
[345087411,1733994643785,-500.0,0.00016999,2]
[345087412,1733994643793,-500.0,0.00016999,2]
[345087414,1733994643803,-478.52650549,0.00016999,2]
[345087416,1733994643812,-500.0,0.00016999,2]
[345087418,1733994643821,-500.0,0.00016999,2]
[345087420,1733994643831,-500.0,0.00016999,2]
[345087422,1733994643840,-500.0,0.00016999,2]
[345087424,1733994643850,-500.0,0.00016999,2]
[345087426,1733994643859,-500.0,0.00016999,2]
[345087428,1733994643868,-500.0,0.00016999,2]
[345087430,1733994643877,-500.0,0.00016999,2]
[345087432,1733994643886,-500.0,0.00016999,2]
[345087434,1733994643895,-13652.24288599,0.00017,2]
[345087436,1733994643904,-550.0,0.00017,2]
[345087437,1733994643913,-550.0,0.00017,2]
[345087439,1733994643922,-16000.0,0.00017,2]
[345087441,1733994643932,-150.0,0.00017,2]
[345087443,1733994643941,-150.0,0.00017,2]
[345087445,1733994643950,-150.0,0.00017,2]
[345087447,1733994643960,-150.0,0.00017,2]
[345087449,1733994643970,-150.0,0.00017,2]
[345087451,1733994643983,-150.0,0.00017,2]
[345087453,1733994643994,-180.41130699,0.00017,2]
[345087455,1733994644003,-871.06,0.00017055,7]
[345087457,1733994644012,-871.06,0.00017055,7]
[345087459,1733994644021,-154.0,0.000171,30]
[345087460,1733994644030,-823.0,0.00017145,2]
[345087462,1733994644039,-150.0,0.00017189,2]
[345087464,1733994644048,-300.121217,0.00017198,2]
[345087466,1733994644057,-600.0,0.00017274,2]
[345087468,1733994644067,-618.0,0.000173,4]
[345087470,1733994644076,-871.06,0.00017328,7]
[345087472,1733994644086,-871.06,0.00017328,7]
[345087474,1733994644094,-190.26972,0.0001733,2]
[345087476,1733994644104,-300.121217,0.00017498,3]
[345087478,1733994644113,-536.54831356,0.00017523,2]
[345087480,1733994644122,-500.0,0.00017523,2]
[345087482,1733994644133,-500.0,0.00017523,2]
[345087484,1733994644142,-500.0,0.00017523,2]
[345087485,1733994644151,-500.0,0.00017523,2]
[345087487,1733994644160,-500.0,0.00017523,2]
[345087489,1733994644169,-410.66758775,0.00017523,2]
[345087491,1733994644179,-500.0,0.00017523,2]
[345087493,1733994644188,-351.43,0.00017523,2]
[345087495,1733994644197,-243.70177176,0.00017523,2]
[345087497,1733994644207,-500.0,0.00017523,2]
[345087499,1733994644216,-500.0,0.00017523,2]
[345087501,1733994644228,-500.0,0.00017523,2]
[345087503,1733994644237,-500.0,0.00017523,2]
[345087505,1733994644246,-500.0,0.00017523,2]
[345087507,1733994644255,-500.0,0.00017523,2]
[345087508,1733994644265,-500.0,0.00017523,2]
[345087509,1733994644279,-382.8,0.00017523,2]
[345087510,1733994644294,-500.57645478,0.00017523,2]
[345087511,1733994644303,-500.0,0.00017523,2]
[345087512,1733994644313,-500.0,0.00017523,2]
[345087513,1733994644322,-500.0,0.00017523,2]
[345087514,1733994644331,-500.0,0.00017523,2]
[345087515,1733994644341,-500.0,0.00017523,2]
[345087516,1733994644350,-500.0,0.00017523,2]
[345087517,1733994644358,-508.20322531,0.00017523,2]
[345087518,1733994644368,-500.0,0.00017523,2]
[345087519,1733994644377,-453.1662248,0.00017523,2]
[345087520,1733994644389,-46.8337752,0.00017523,2]
[345087521,1733994644399,-500.0,0.00017523,2]
[345087522,1733994644408,-500.0,0.00017523,2]
[345087523,1733994644417,-500.0,0.00017523,2]
[345087524,1733994644426,-500.0,0.00017523,2]
[345087525,1733994644435,-500.0,0.00017523,2]
[345087526,1733994644444,-500.0,0.00017523,2]
[345087527,1733994644454,-500.0,0.00017523,2]
[345087528,1733994644463,-500.0,0.00017523,2]
[345087529,1733994644472,-500.0,0.00017523,2]
[345087530,1733994644484,-500.0,0.00017523,2]
[345087531,1733994644494,-500.0,0.00017523,2]
[345087532,1733994644503,-500.0,0.00017523,2]
[345087533,1733994644513,-500.0,0.00017523,2]
[345087534,1733994644522,-500.0,0.00017523,2]
[345087535,1733994644531,-854.59,0.00017523,2]
[345087536,1733994644540,-500.0,0.00017523,2]
[345087537,1733994644549,-298.1684149,0.00017523,2]
[345087538,1733994644558,-500.0,0.00017523,2]
[345087539,1733994644567,-500.0,0.00017523,2]
[345087540,1733994644576,-500.0,0.00017523,2]
[345087541,1733994644585,-500.0,0.00017523,2]
[345087542,1733994644594,-500.0,0.00017523,2]
[345087543,1733994644603,-500.0,0.00017523,2]
[345087544,1733994644612,-500.0,0.00017523,2]
[345087545,1733994644621,-500.0,0.00017523,2]
[345087546,1733994644631,-500.0,0.00017523,2]
[345087547,1733994644641,-1604.31,0.00017523,2]
[345087548,1733994644650,-500.0,0.00017523,2]
[345087549,1733994644659,-500.0,0.00017523,2]
[345087550,1733994644668,-500.0,0.00017523,2]
[345087551,1733994644677,-500.0,0.00017523,2]
[345087552,1733994644687,-500.0,0.00017523,2]
[345087553,1733994644696,-500.0,0.00017523,2]
[345087554,1733994644705,-500.0,0.00017523,2]
[345087555,1733994644714,-500.0,0.00017523,2]
[345087556,1733994644726,-1544.93,0.00017523,2]
[345087557,1733994644735,-500.0,0.00017523,2]
[345087558,1733994644744,-500.0,0.00017523,2]
[345087559,1733994644754,-500.0,0.00017523,2]
[345087560,1733994644763,-500.0,0.00017523,2]
[345087561,1733994644772,-500.0,0.00017523,2]
[345087562,1733994644784,-500.0,0.00017523,2]
[345087563,1733994644794,-500.0,0.00017523,2]
[345087564,1733994644803,-500.0,0.00017523,2]
[345087565,1733994644813,-500.0,0.00017523,2]
[345087566,1733994644822,-500.0,0.00017523,2]
[345087567,1733994644831,-500.0,0.00017523,2]
[345087568,1733994644840,-500.0,0.00017523,2]
[345087569,1733994644850,-500.0,0.00017523,2]
[345087570,1733994644859,-500.0,0.00017523,2]
[345087571,1733994644868,-500.0,0.00017523,2]
[345087572,1733994644878,-500.0,0.00017523,2]
[345087573,1733994644888,-500.0,0.00017523,2]
[345087574,1733994644898,-1000.0,0.00017523,2]
[345087575,1733994644907,-500.0,0.00017523,2]
[345087576,1733994644916,-500.0,0.00017523,2]
[345087577,1733994644925,-500.0,0.00017523,2]
[345087578,1733994644934,-5001.24188217,0.00017524,2]
[345087579,1733994644944,-5000.0,0.00017524,2]
[345087580,1733994644956,-5000.0,0.00017524,2]
[345087581,1733994644966,-5000.0,0.00017524,2]
[345087582,1733994644978,-5000.0,0.00017524,2]
[345087583,1733994644987,-1600.0,0.00017534,2]
[345087584,1733994644996,-366.6054148,0.00017548,2]
[345087585,1733994645006,-500.0,0.00017548,2]
[345087586,1733994645015,-151.0,0.00017565,2]
[345087587,1733994645025,-1315.83,0.000176,7]
[345087588,1733994645034,-871.06,0.00017601,7]
[345087589,1733994645043,-871.06,0.00017601,7]
[345087590,1733994645053,-154.0,0.00017644,30]
[345087591,1733994645064,-300.0,0.00017651,2]
[345087592,1733994645073,-166.77051298,0.00017714,2]
[345087593,1733994645086,-889.22948702,0.00017714,2]
[345087594,1733994645095,-300.121217,0.00017798,2]
[345087595,1733994645104,-618.0,0.000178,5]
[345087596,1733994645113,-250.0,0.00017874,2]
[345087597,1733994645123,-4000.0,0.00017874,30]
[345087598,1733994645132,-20.42017012,0.00017874,7]
[345087599,1733994645155,-850.63982988,0.00017874,7]
[345087600,1733994645164,-214.56877913,0.00017874,7]
[345087615,1733994646385,-656.49122087,0.00017874,7]
[345087616,1733994646394,-190.26972,0.0001795,2]
[345087617,1733994646403,-2192.00445913,0.00018,30]
[345087619,1733994673707,319.91561129,0.00010974,2]
[345087620,1733994673972,319.91561129,0.00010992,2]
[345087621,1733994674260,319.91561129,0.0001097,2]
[345087622,1733994674532,319.91561129,0.00010984,2]
[345087623,1733994674798,319.91561129,0.00010974,2]
[345087624,1733994759974,263.16,0.000123,2]
[345087625,1733994903211,154.0,0.000123,30]
[345087626,1733994945363,647.40125996,0.00012964,2]
[345087627,1733994945634,236.85,0.000124,2]
[345087628,1733995130865,213.16,0.000128,2]
[345087634,1733995202992,150.0,0.000123,30]
[345087636,1733995316994,191.85,0.000128,2]
[345087638,1733995502902,150.0,0.000123,30]
[345087639,1733995503087,172.66,0.000128,2]
[345087640,1733995508870,725425.42364096,0.0001,2]
[345087641,1733995523816,-800.0,0.00013,2]
[345087642,1733995523842,-800.0,0.00013,2]
[345087643,1733995523867,-800.0,0.00013,2]
[345087644,1733995523892,-800.0,0.00013,2]
[345087645,1733995523917,-800.0,0.00013,2]
[345087646,1733995523941,-800.0,0.00013,2]
[345087647,1733995540393,1146.4641656,0.0001274,2]
[345087652,1733995591217,8737.57618414,0.000107,2]
[345087653,1733995688647,155.39,0.000128,2]
[345087661,1733995803167,188.0,0.000128,30]
[345087668,1733995832477,-417.602367,0.00013039,2]
[345087669,1733995832487,-275.67,0.00013064,2]
[345087670,1733995832498,-188.0,0.00013284,30]
[345087671,1733995832509,-417.602367,0.00013663,2]
[345087672,1733995832520,-417.602367,0.00013698,2]
[345087673,1733995832530,-314.34,0.00013699,2]
[345087674,1733995832540,-188.0,0.00013768,30]
[345087675,1733995832551,-1577.24,0.00013845,2]
[345087679,1733995832850,-417.602367,0.00013899,2]
[345087681,1733995832863,-151.0,0.00014142,2]
[345087683,1733995832873,-500.0,0.00014164,2]
[345087684,1733995832883,-500.0,0.00014164,2]
[345087685,1733995832892,-188.0,0.00014253,30]
[345087686,1733995832902,-188.0,0.00014737,30]
[345087687,1733995832911,-150.0,0.00014906,2]
[345087688,1733995832921,-417.602367,0.00014999,2]
[345087690,1733995832931,-417.602367,0.00015054,2]
[345087692,1733995832941,-188.0,0.00015221,30]
[345087694,1733995832950,-153.09,0.00015513,2]
[345087695,1733995832960,-500.0,0.00015534,2]
[345087696,1733995832970,-500.0,0.00015535,2]
[345087697,1733995832979,-417.602367,0.00015699,2]
[345087698,1733995832988,-188.0,0.00015705,30]
[345087699,1733995832996,-250.0,0.00015749,2]
[345087700,1733995833005,-300.0,0.0001577,2]
[345087701,1733995833014,-2751.0,0.00015771,2]
[345087702,1733995833022,-250.0,0.00015771,2]
[345087703,1733995833032,-151.06,0.00015906,2]
[345087704,1733995833042,-200.0,0.00016001,2]
[345087705,1733995833052,-200.0,0.00016046,2]
[345087706,1733995833063,-1577.24,0.00016109,2]
[345087707,1733995833073,-15593.391,0.00016116,2]
[345087708,1733995833083,-6126.06,0.00016116,2]
[345087709,1733995833093,-188.0,0.00016189,30]
[345087710,1733995833102,-500.0,0.00016301,2]
[345087711,1733995833113,-366.0,0.00016301,2]
[345087712,1733995833122,-4146.63,0.0001633,2]
[345087713,1733995833132,-1000.0,0.00016403,2]
[345087714,1733995833141,-250.0,0.00016403,2]
[345087715,1733995833150,-500.0,0.00016579,14]
[345087716,1733995833160,-500.0,0.00016588,14]
[345087717,1733995833170,-500.0,0.00016596,14]
[345087718,1733995833179,-3440.15,0.000166,31]
[345087719,1733995833191,-3440.15,0.000166,31]
[345087720,1733995833201,-3440.15,0.000166,31]
[345087721,1733995833211,-3440.15,0.000166,31]
[345087722,1733995833222,-3440.15,0.000166,31]
[345087723,1733995833232,-3440.15,0.000166,31]
[345087724,1733995833242,-3440.15,0.000166,31]
[345087725,1733995833252,-3440.15,0.000166,31]
[345087726,1733995833262,-3440.15,0.000166,31]
[345087727,1733995833272,-3440.15,0.000166,31]
[345087728,1733995833281,-3440.15,0.000166,31]
[345087729,1733995833291,-3440.15,0.000166,31]
[345087730,1733995833302,-3440.15,0.000166,31]
[345087731,1733995833311,-3440.15,0.000166,31]
[345087732,1733995833320,-3440.15,0.000166,31]
[345087733,1733995833329,-3440.15,0.000166,31]
[345087734,1733995833338,-500.0,0.00016605,14]
[345087735,1733995833348,-500.0,0.00016614,14]
[345087736,1733995833357,-500.0,0.00016623,14]
[345087737,1733995833366,-500.0,0.00016632,14]
[345087738,1733995833375,-500.0,0.0001664,14]
[345087739,1733995833384,-4000.0,0.00016648,2]
[345087740,1733995833393,-500.0,0.00016649,14]
[345087741,1733995833402,-1194.82,0.00016658,30]
[345087742,1733995833411,-500.0,0.00016658,14]
[345087743,1733995833420,-188.0,0.00016674,30]
[345087744,1733995833429,-5002.0,0.000167,2]
[345087745,1733995833440,-175.42,0.00016712,2]
[345087746,1733995833449,-2000.0,0.00016748,2]
[345087747,1733995833459,-500.0,0.00016748,2]
[345087748,1733995833469,-314.34,0.00016895,2]